[Event "Titled Tuesday Blitz June 27 Early 2023"]
[White "slidingknight2775"]
[Black "Adireddy Arjun"]
[BlackFideId "25647709"]
[WhiteElo "2527"]
[BlackElo "2333"]
[Result "1-0"]
[Round "2"]
[TimeControl "180+2"]
[Date "2023.06.27"]
[WhiteClock "0:00:16"]
[BlackClock "0:00:10"]
[Board "175"]

1. d4 {[%clk 0:03:00]}  d5 {[%clk 0:02:55]} 2. c4 {[%clk 0:03:00]}  c6 {[%clk 0:02:54]} 3. cxd5 {[%clk 0:02:59]}  cxd5 {[%clk 0:02:54]} 4. Bf4 {[%clk 0:03:00]}  Nf6 {[%clk 0:02:53]} 5. Nc3 {[%clk 0:02:58]}  Nc6 {[%clk 0:02:53]} 6. e3 {[%clk 0:02:58]}  e6 {[%clk 0:02:53]} 7. Bd3 {[%clk 0:02:54]}  Bd6 {[%clk 0:02:52]} 8. Bxd6 {[%clk 0:02:53]}  Qxd6 {[%clk 0:02:52]} 9. Nf3 {[%clk 0:02:54]}  O-O {[%clk 0:02:52]} 10. O-O {[%clk 0:02:54]}  Bd7 {[%clk 0:02:46]} 11. h3 {[%clk 0:02:51]}  Ne7 {[%clk 0:02:42]} 12. Ne5 {[%clk 0:02:49]}  Bc6 {[%clk 0:02:39]} 13. Rc1 {[%clk 0:02:46]}  Rac8 {[%clk 0:02:35]} 14. a3 {[%clk 0:02:23]}  a6 {[%clk 0:02:31]} 15. f4 {[%clk 0:02:20]}  b5 {[%clk 0:02:27]} 16. Qf3 {[%clk 0:02:01]}  Bb7 {[%clk 0:02:18]} 17. Bb1 {[%clk 0:01:52]}  b4 {[%clk 0:02:02]} 18. axb4 {[%clk 0:01:34]}  Qxb4 {[%clk 0:02:03]} 19. Rf2 {[%clk 0:01:30]}  Rc7 {[%clk 0:01:51]} 20. Kh2 {[%clk 0:01:20]}  Rfc8 {[%clk 0:01:33]} 21. Rg1 {[%clk 0:01:07]}  Nf5 {[%clk 0:00:19]} 22. g4 {[%clk 0:00:44]}  Nd6 {[%clk 0:00:19]} 23. g5 {[%clk 0:00:38]}  Nfe4 {[%clk 0:00:19]} 24. Bxe4 {[%clk 0:00:28]}  dxe4 {[%clk 0:00:19]} 25. Nxe4 {[%clk 0:00:29]}  Bxe4 {[%clk 0:00:18]} 26. Qh5 {[%clk 0:00:23]}  g6 {[%clk 0:00:11]} 27. Qd1 {[%clk 0:00:16]}  Rc2 {[%clk 0:00:06]} 28. Rf1 {[%clk 0:00:14]}  Qxb2 {[%clk 0:00:05]} 29. Ng4 {[%clk 0:00:09]}  Rxf2+ {[%clk 0:00:05]} 30. Rxf2 {[%clk 0:00:10]}  Qb5 {[%clk 0:00:02]} 31. Nf6+ {[%clk 0:00:09]}  Kg7 {[%clk 0:00:02]} 32. Qa1 {[%clk 0:00:08]}  Rc4 {[%clk 0:00:02]} 33. d5 {[%clk 0:00:07]}  e5 {[%clk 0:00:01]} 34. Qxe5 {[%clk 0:00:06]}  Nf5 {[%clk 0:00:01]} 35. Nxe4+ {[%clk 0:00:04]}  Kf8 {[%clk 0:00:01]} 36. Qh8+ {[%clk 0:00:03]}  Ke7 {[%clk 0:00:02]} 37. d6+ {[%clk 0:00:04]}  Nxd6 {[%clk 0:00:02]} 38. Qf6+ {[%clk 0:00:04]}  Ke8 {[%clk 0:00:02]} 39. Nxd6+ {[%clk 0:00:04]}  Kd7 {[%clk 0:00:03]} 40. Nxb5 {[%clk 0:00:05]}  Rc6 {[%clk 0:00:03]} 41. Qd4+ {[%clk 0:00:05]}  Kc8 {[%clk 0:00:03]} 42. Rd2 {[%clk 0:00:06]}  axb5 {[%clk 0:00:03]} 43. Qd8+ {[%clk 0:00:06]}  Kb7 {[%clk 0:00:04]} 44. Qd7+ {[%clk 0:00:07]}  Rc7 {[%clk 0:00:04]} 45. Qxc7+ {[%clk 0:00:08]}  Kxc7 {[%clk 0:00:04]} 46. Kg3 {[%clk 0:00:09]}  Kb6 {[%clk 0:00:05]} 47. Kf3 {[%clk 0:00:10]}  Kc5 {[%clk 0:00:06]} 48. Ke4 {[%clk 0:00:10]}  b4 {[%clk 0:00:06]} 49. Ke5 {[%clk 0:00:11]}  Kc4 {[%clk 0:00:07]} 50. Kf6 {[%clk 0:00:11]}  Kc3 {[%clk 0:00:08]} 51. Rd8 {[%clk 0:00:12]}  b3 {[%clk 0:00:09]} 52. Rb8 {[%clk 0:00:13]}  Kd3 {[%clk 0:00:09]} 53. Kxf7 {[%clk 0:00:13]}  Ke4 {[%clk 0:00:10]} 54. Kg7 {[%clk 0:00:13]}  Kxe3 {[%clk 0:00:11]} 55. Kxh7 {[%clk 0:00:14]}  Kxf4 {[%clk 0:00:12]} 56. Kxg6 {[%clk 0:00:15]}  Kg3 {[%clk 0:00:12]} 57. h4 {[%clk 0:00:15]}  Kxh4 {[%clk 0:00:10]} 58. Kh6 {[%clk 0:00:16]} 1-0


[Site "https://www.chess.com"]

[Event "Titled Tuesday Blitz June 27 Early 2023"]
[White "Davidson, Kevin"]
[Black "Delorme, Axel"]
[WhiteFideId "2056810"]
[BlackFideId "632023"]
[WhiteElo "2328"]
[BlackElo "2526"]
[Result "0-1"]
[Round "2"]
[TimeControl "180+2"]
[Date "2023.06.27"]
[WhiteClock "0:00:00"]
[BlackClock "0:00:36"]
[Board "176"]

1. e4 {[%clk 0:03:00]}  c5 {[%clk 0:02:59]} 2. Nf3 {[%clk 0:03:00]}  d6 {[%clk 0:03:00]} 3. d4 {[%clk 0:02:59]}  cxd4 {[%clk 0:03:01]} 4. Nxd4 {[%clk 0:02:59]}  Nf6 {[%clk 0:03:01]} 5. Nc3 {[%clk 0:02:58]}  a6 {[%clk 0:03:02]} 6. h3 {[%clk 0:02:56]}  e5 {[%clk 0:03:02]} 7. Nde2 {[%clk 0:02:55]}  h5 {[%clk 0:03:03]} 8. Bg5 {[%clk 0:02:55]}  Be6 {[%clk 0:03:01]} 9. Bxf6 {[%clk 0:02:51]}  Qxf6 {[%clk 0:03:02]} 10. Nd5 {[%clk 0:02:46]}  Qd8 {[%clk 0:03:03]} 11. Nec3 {[%clk 0:02:44]}  g6 {[%clk 0:03:03]} 12. Bc4 {[%clk 0:02:44]}  Bh6 {[%clk 0:03:03]} 13. O-O {[%clk 0:02:37]}  O-O {[%clk 0:03:03]} 14. Qd3 {[%clk 0:02:33]}  Nc6 {[%clk 0:03:02]} 15. Rad1 {[%clk 0:02:32]}  b5 {[%clk 0:02:59]} 16. Bb3 {[%clk 0:02:32]}  Rc8 {[%clk 0:02:47]} 17. a4 {[%clk 0:02:28]}  b4 {[%clk 0:02:46]} 18. Ne2 {[%clk 0:02:28]}  a5 {[%clk 0:02:33]} 19. c3 {[%clk 0:02:18]}  bxc3 {[%clk 0:02:31]} 20. bxc3 {[%clk 0:02:17]}  Rb8 {[%clk 0:02:27]} 21. Rb1 {[%clk 0:02:13]}  Kg7 {[%clk 0:02:22]} 22. Bc4 {[%clk 0:02:09]}  Qh4 {[%clk 0:02:11]} 23. Rb5 {[%clk 0:01:20]}  f5 {[%clk 0:02:03]} 24. Ne3 {[%clk 0:00:50]}  Bxc4 {[%clk 0:01:30]} 25. Nxc4 {[%clk 0:00:34]}  Qxe4 {[%clk 0:01:20]} 26. Qxe4 {[%clk 0:00:31]}  fxe4 {[%clk 0:01:21]} 27. Nxd6 {[%clk 0:00:28]}  e3 {[%clk 0:01:22]} 28. f3 {[%clk 0:00:22]}  Rfd8 {[%clk 0:01:17]} 29. Ne4 {[%clk 0:00:19]}  Na7 {[%clk 0:00:57]} 30. Rxa5 {[%clk 0:00:16]}  Nc6 {[%clk 0:00:56]} 31. Rb5 {[%clk 0:00:16]}  Ne7 {[%clk 0:00:53]} 32. Rfb1 {[%clk 0:00:15]}  Ra8 {[%clk 0:00:53]} 33. Rb7 {[%clk 0:00:13]}  Kf8 {[%clk 0:00:53]} 34. Ra1 {[%clk 0:00:11]}  Nd5 {[%clk 0:00:42]} 35. a5 {[%clk 0:00:09]}  Nf4 {[%clk 0:00:40]} 36. N2g3 {[%clk 0:00:01]}  h4 {[%clk 0:00:36]} 37. Nf1 {[%clk 0:00:01]}  e2 {[%clk 0:00:36]} 38. Nh2 {[%clk 0:00:00]}  Rd1+ {[%clk 0:00:36]} 0-1


[Site "https://www.chess.com"]

[Event "Titled Tuesday Blitz June 27 Early 2023"]
[White "Bruedigam, Martin"]
[Black "Wang, Alexander J"]
[WhiteFideId "24608033"]
[BlackFideId "30955270"]
[WhiteElo "2520"]
[BlackElo "2310"]
[Result "1-0"]
[Round "2"]
[TimeControl "180+2"]
[Date "2023.06.27"]
[WhiteClock "0:01:10"]
[BlackClock "0:00:27"]
[Board "181"]

1. d4 {[%clk 0:03:00]}  d5 {[%clk 0:02:57]} 2. c4 {[%clk 0:03:01]}  e6 {[%clk 0:02:57]} 3. Nc3 {[%clk 0:03:01]}  c5 {[%clk 0:02:57]} 4. cxd5 {[%clk 0:02:59]}  exd5 {[%clk 0:02:57]} 5. Nf3 {[%clk 0:02:56]}  Nc6 {[%clk 0:02:55]} 6. dxc5 {[%clk 0:02:56]}  d4 {[%clk 0:02:51]} 7. Na4 {[%clk 0:02:56]}  Bxc5 {[%clk 0:02:49]} 8. Nxc5 {[%clk 0:02:56]}  Qa5+ {[%clk 0:02:45]} 9. Bd2 {[%clk 0:02:57]}  Qxc5 {[%clk 0:02:38]} 10. e3 {[%clk 0:02:57]}  dxe3 {[%clk 0:02:36]} 11. Bxe3 {[%clk 0:02:57]}  Qb4+ {[%clk 0:02:35]} 12. Qd2 {[%clk 0:02:56]}  Qxd2+ {[%clk 0:02:35]} 13. Bxd2 {[%clk 0:02:53]}  Nf6 {[%clk 0:02:27]} 14. Bc3 {[%clk 0:02:48]}  O-O {[%clk 0:02:25]} 15. Bxf6 {[%clk 0:02:44]}  gxf6 {[%clk 0:02:21]} 16. O-O-O {[%clk 0:02:38]}  Bg4 {[%clk 0:02:20]} 17. Be2 {[%clk 0:02:32]}  Rad8 {[%clk 0:02:15]} 18. a3 {[%clk 0:02:24]}  Rfe8 {[%clk 0:02:02]} 19. Rxd8 {[%clk 0:02:17]}  Rxd8 {[%clk 0:01:53]} 20. h3 {[%clk 0:02:17]}  Bf5 {[%clk 0:01:48]} 21. Rd1 {[%clk 0:02:11]}  Rxd1+ {[%clk 0:01:47]} 22. Kxd1 {[%clk 0:02:10]}  Be4 {[%clk 0:01:42]} 23. Kd2 {[%clk 0:02:08]}  Kf8 {[%clk 0:01:32]} 24. Ke3 {[%clk 0:02:06]}  Bg6 {[%clk 0:01:30]} 25. Nd4 {[%clk 0:02:02]}  Ke7 {[%clk 0:01:25]} 26. Nxc6+ {[%clk 0:02:00]}  bxc6 {[%clk 0:01:25]} 27. Kd4 {[%clk 0:02:00]}  Kd6 {[%clk 0:01:24]} 28. b4 {[%clk 0:02:00]}  h6 {[%clk 0:01:17]} 29. Bc4 {[%clk 0:01:56]}  Bh5 {[%clk 0:01:05]} 30. h4 {[%clk 0:01:42]}  Bg6 {[%clk 0:00:45]} 31. g4 {[%clk 0:01:41]}  h5 {[%clk 0:00:44]} 32. gxh5 {[%clk 0:01:40]}  Bxh5 {[%clk 0:00:45]} 33. a4 {[%clk 0:01:35]}  Bg6 {[%clk 0:00:44]} 34. a5 {[%clk 0:01:35]}  Bh5 {[%clk 0:00:43]} 35. f4 {[%clk 0:01:31]}  f5 {[%clk 0:00:38]} 36. Ke3 {[%clk 0:01:24]}  f6 {[%clk 0:00:37]} 37. Be2 {[%clk 0:01:21]}  Bxe2 {[%clk 0:00:27]} 38. Kxe2 {[%clk 0:01:22]}  Ke6 {[%clk 0:00:27]} 39. Kd3 {[%clk 0:01:15]}  Kd5 {[%clk 0:00:23]} 40. h5 {[%clk 0:01:14]}  Ke6 {[%clk 0:00:23]} 41. Kd4 {[%clk 0:01:15]}  Kf7 {[%clk 0:00:23]} 42. Kc5 {[%clk 0:01:15]}  Kg7 {[%clk 0:00:24]} 43. Kxc6 {[%clk 0:01:15]}  Kh6 {[%clk 0:00:25]} 44. b5 {[%clk 0:01:10]}  Kxh5 {[%clk 0:00:24]} 45. b6 {[%clk 0:01:10]}  axb6 {[%clk 0:00:24]} 46. axb6 {[%clk 0:01:11]}  Kg4 {[%clk 0:00:23]} 47. b7 {[%clk 0:01:11]}  Kxf4 {[%clk 0:00:24]} 48. b8=Q+ {[%clk 0:01:12]}  Kg4 {[%clk 0:00:24]} 49. Kd5 {[%clk 0:01:12]}  Kg5 {[%clk 0:00:23]} 50. Kd4 {[%clk 0:01:12]}  f4 {[%clk 0:00:23]} 51. Ke4 {[%clk 0:01:11]}  f5+ {[%clk 0:00:22]} 52. Kf3 {[%clk 0:01:12]}  Kf6 {[%clk 0:00:23]} 53. Qxf4 {[%clk 0:01:12]}  Ke6 {[%clk 0:00:24]} 54. Qd4 {[%clk 0:01:11]}  Kf7 {[%clk 0:00:24]} 55. Kf4 {[%clk 0:01:11]}  Kg6 {[%clk 0:00:25]} 56. Qe5 {[%clk 0:01:11]}  Kh6 {[%clk 0:00:24]} 57. Qxf5 {[%clk 0:01:10]}  Kg7 {[%clk 0:00:25]} 58. Qe6 {[%clk 0:01:09]}  Kh8 {[%clk 0:00:26]} 59. Qd7 {[%clk 0:01:08]}  Kg8 {[%clk 0:00:26]} 60. Kf5 {[%clk 0:01:09]}  Kf8 {[%clk 0:00:26]} 61. Kg6 {[%clk 0:01:09]}  Kg8 {[%clk 0:00:27]} 62. Qg7# {[%clk 0:01:10]} 1-0


[Site "https://www.chess.com"]

[Event "Titled Tuesday Blitz June 27 Early 2023"]
[White "Bueno, Alfeu Junior Varela"]
[Black "Rodriguez, Santiago"]
[WhiteFideId "2108879"]
[BlackFideId "3000591"]
[WhiteElo "2309"]
[BlackElo "2519"]
[Result "0-1"]
[Round "2"]
[TimeControl "180+2"]
[Date "2023.06.27"]
[WhiteClock "0:00:00"]
[BlackClock "0:01:14"]
[Board "182"]

1. e4 {[%clk 0:03:00]}  c5 {[%clk 0:02:59]} 2. Nc3 {[%clk 0:03:00]}  Nc6 {[%clk 0:02:59]} 3. f4 {[%clk 0:03:01]}  e6 {[%clk 0:02:59]} 4. Nf3 {[%clk 0:03:01]}  a6 {[%clk 0:02:59]} 5. g3 {[%clk 0:03:01]}  Nf6 {[%clk 0:02:58]} 6. Bg2 {[%clk 0:03:02]}  d5 {[%clk 0:02:59]} 7. exd5 {[%clk 0:02:47]}  exd5 {[%clk 0:02:58]} 8. O-O {[%clk 0:02:47]}  Be7 {[%clk 0:02:58]} 9. Ne5 {[%clk 0:02:47]}  O-O {[%clk 0:02:57]} 10. Nxc6 {[%clk 0:02:47]}  bxc6 {[%clk 0:02:57]} 11. d3 {[%clk 0:02:39]}  Rb8 {[%clk 0:02:56]} 12. Rb1 {[%clk 0:02:34]}  Bg4 {[%clk 0:02:46]} 13. Qe1 {[%clk 0:02:34]}  Re8 {[%clk 0:02:45]} 14. Qf2 {[%clk 0:02:34]}  Qa5 {[%clk 0:02:43]} 15. Bd2 {[%clk 0:01:59]}  Qb6 {[%clk 0:02:41]} 16. f5 {[%clk 0:01:52]}  Bd6 {[%clk 0:02:13]} 17. h3 {[%clk 0:01:31]}  Be5 {[%clk 0:02:13]} 18. hxg4 {[%clk 0:01:24]}  Bd4 {[%clk 0:02:10]} 19. Bf3 {[%clk 0:01:14]}  Bxf2+ {[%clk 0:02:00]} 20. Rxf2 {[%clk 0:01:15]}  c4 {[%clk 0:01:59]} 21. dxc4 {[%clk 0:01:06]}  Ne4 {[%clk 0:01:56]} 22. Bxe4 {[%clk 0:00:58]}  dxe4 {[%clk 0:01:55]} 23. Bf4 {[%clk 0:00:39]}  Rbd8 {[%clk 0:01:46]} 24. b4 {[%clk 0:00:30]}  Qd4 {[%clk 0:01:33]} 25. Rb3 {[%clk 0:00:14]}  Qxc4 {[%clk 0:01:30]} 26. Re2 {[%clk 0:00:13]}  h6 {[%clk 0:01:19]} 27. Kf2 {[%clk 0:00:08]}  c5 {[%clk 0:01:16]} 28. bxc5 {[%clk 0:00:06]}  Qxc5+ {[%clk 0:01:16]} 29. Be3 {[%clk 0:00:07]}  Qc4 {[%clk 0:01:16]} 30. Bb6 {[%clk 0:00:03]}  Rb8 {[%clk 0:01:14]} 31. a4 {[%clk 0:00:00]}  Rxb6 {[%clk 0:01:14]} 0-1


[Site "https://www.chess.com"]

[Event "Titled Tuesday Blitz June 27 Early 2023"]
[White "Vaglio Munoz, Jaime"]
[Black "Keleberda, Tymur"]
[WhiteFideId "6500145"]
[BlackFideId "14174294"]
[WhiteElo "2305"]
[BlackElo "2518"]
[Result "0-1"]
[Round "2"]
[TimeControl "180+2"]
[Date "2023.06.27"]
[WhiteClock "0:00:10"]
[BlackClock "0:00:51"]
[Board "184"]

1. Nf3 {[%clk 0:03:00]}  c5 {[%clk 0:02:59]} 2. c4 {[%clk 0:03:00]}  Nf6 {[%clk 0:02:56]} 3. b3 {[%clk 0:03:00]}  b6 {[%clk 0:02:56]} 4. Bb2 {[%clk 0:03:00]}  e6 {[%clk 0:02:54]} 5. g3 {[%clk 0:02:58]}  Bb7 {[%clk 0:02:54]} 6. Bg2 {[%clk 0:02:58]}  Be7 {[%clk 0:02:54]} 7. O-O {[%clk 0:02:57]}  d5 {[%clk 0:02:51]} 8. cxd5 {[%clk 0:02:56]}  Nxd5 {[%clk 0:02:51]} 9. d4 {[%clk 0:02:56]}  cxd4 {[%clk 0:02:50]} 10. Nxd4 {[%clk 0:02:55]}  O-O {[%clk 0:02:49]} 11. Nd2 {[%clk 0:02:53]}  Nd7 {[%clk 0:02:38]} 12. a3 {[%clk 0:02:52]}  Rc8 {[%clk 0:02:28]} 13. Re1 {[%clk 0:02:51]}  Qc7 {[%clk 0:02:28]} 14. e4 {[%clk 0:02:49]}  N5f6 {[%clk 0:02:28]} 15. Rc1 {[%clk 0:02:46]}  Qb8 {[%clk 0:02:28]} 16. Nc4 {[%clk 0:02:42]}  Rfd8 {[%clk 0:02:25]} 17. e5 {[%clk 0:02:35]}  Nd5 {[%clk 0:02:16]} 18. f4 {[%clk 0:02:22]}  a6 {[%clk 0:02:11]} 19. b4 {[%clk 0:02:17]}  Qa7 {[%clk 0:02:08]} 20. b5 {[%clk 0:02:12]}  axb5 {[%clk 0:02:06]} 21. Nxb5 {[%clk 0:02:11]}  Qa6 {[%clk 0:02:02]} 22. Ncd6 {[%clk 0:01:52]}  Rxc1 {[%clk 0:01:55]} 23. Qxc1 {[%clk 0:01:48]}  Nc5 {[%clk 0:01:53]} 24. Nxb7 {[%clk 0:01:46]}  Qxb7 {[%clk 0:01:50]} 25. Qc4 {[%clk 0:01:35]}  Qa6 {[%clk 0:01:47]} 26. Bf1 {[%clk 0:01:30]}  Qa5 {[%clk 0:01:45]} 27. Rd1 {[%clk 0:01:12]}  Rc8 {[%clk 0:01:38]} 28. Qe2 {[%clk 0:01:05]}  Qa4 {[%clk 0:01:34]} 29. Nd6 {[%clk 0:01:01]}  Rd8 {[%clk 0:01:28]} 30. Nc4 {[%clk 0:00:54]}  Qb3 {[%clk 0:01:27]} 31. Nd6 {[%clk 0:00:44]}  Na4 {[%clk 0:01:04]} 32. Ba1 {[%clk 0:00:27]}  Nac3 {[%clk 0:01:02]} 33. Bxc3 {[%clk 0:00:23]}  Nxc3 {[%clk 0:01:03]} 34. Rd3 {[%clk 0:00:23]}  Nxe2+ {[%clk 0:01:04]} 35. Bxe2 {[%clk 0:00:23]}  Qb1+ {[%clk 0:01:03]} 36. Kf2 {[%clk 0:00:23]}  Qc1 {[%clk 0:01:02]} 37. Kf3 {[%clk 0:00:21]}  Bxd6 {[%clk 0:01:01]} 38. exd6 {[%clk 0:00:21]}  Qc6+ {[%clk 0:01:00]} 39. Ke3 {[%clk 0:00:21]}  Rxd6 {[%clk 0:01:00]} 40. Rb3 {[%clk 0:00:22]}  Qc5+ {[%clk 0:01:00]} 41. Kf3 {[%clk 0:00:19]}  Rd7 {[%clk 0:01:01]} 42. Re3 {[%clk 0:00:17]}  Rd2 {[%clk 0:01:00]} 43. Bd3 {[%clk 0:00:12]}  Qh5+ {[%clk 0:00:57]} 44. g4 {[%clk 0:00:12]}  Qh3+ {[%clk 0:00:53]} 45. Ke4 {[%clk 0:00:12]}  Qg2+ {[%clk 0:00:51]} 46. Kd4 {[%clk 0:00:12]}  Qd5+ {[%clk 0:00:50]} 47. Kc3 {[%clk 0:00:11]}  Qa5+ {[%clk 0:00:50]} 48. Kd4 {[%clk 0:00:10]}  Qc5+ {[%clk 0:00:50]} 49. Ke4 {[%clk 0:00:10]}  Qd5# {[%clk 0:00:51]} 0-1


[Site "https://www.chess.com"]

[Event "Titled Tuesday Blitz June 27 Early 2023"]
[White "Navalgund, Niranjan"]
[Black "Biriukov, Ilja"]
[WhiteFideId "5030854"]
[BlackFideId "4113373"]
[WhiteElo "2517"]
[BlackElo "2301"]
[Result "0-1"]
[Round "2"]
[TimeControl "180+2"]
[Date "2023.06.27"]
[WhiteClock "0:00:58"]
[BlackClock "0:00:05"]
[Board "186"]

1. e4 {[%clk 0:03:00]}  c5 {[%clk 0:02:58]} 2. d4 {[%clk 0:02:59]}  cxd4 {[%clk 0:02:57]} 3. c3 {[%clk 0:02:57]}  d3 {[%clk 0:02:57]} 4. f4 {[%clk 0:02:52]}  Nc6 {[%clk 0:02:56]} 5. Nf3 {[%clk 0:02:48]}  d6 {[%clk 0:02:55]} 6. Na3 {[%clk 0:02:47]}  g6 {[%clk 0:02:54]} 7. Nc4 {[%clk 0:02:46]}  Bg7 {[%clk 0:02:55]} 8. Bxd3 {[%clk 0:02:45]}  Nf6 {[%clk 0:02:55]} 9. a4 {[%clk 0:02:44]}  O-O {[%clk 0:02:53]} 10. O-O {[%clk 0:02:44]}  Be6 {[%clk 0:02:41]} 11. Ne3 {[%clk 0:02:34]}  Ng4 {[%clk 0:02:34]} 12. f5 {[%clk 0:02:28]}  Nxe3 {[%clk 0:02:32]} 13. Bxe3 {[%clk 0:02:28]}  Bd7 {[%clk 0:02:31]} 14. Qe1 {[%clk 0:02:27]}  Ne5 {[%clk 0:02:26]} 15. Be2 {[%clk 0:02:26]}  Bc6 {[%clk 0:02:21]} 16. Qh4 {[%clk 0:02:17]}  Qc7 {[%clk 0:02:01]} 17. Bh6 {[%clk 0:02:11]}  Bxe4 {[%clk 0:01:27]} 18. Ng5 {[%clk 0:02:04]}  Qb6+ {[%clk 0:00:56]} 19. Kh1 {[%clk 0:02:01]}  Bxf5 {[%clk 0:00:42]} 20. Bxg7 {[%clk 0:01:58]}  Kxg7 {[%clk 0:00:41]} 21. Qxh7+ {[%clk 0:01:58]}  Kf6 {[%clk 0:00:41]} 22. Qh4 {[%clk 0:01:53]}  Kg7 {[%clk 0:00:36]} 23. Qh7+ {[%clk 0:01:43]}  Kf6 {[%clk 0:00:36]} 24. Rxf5+ {[%clk 0:01:42]}  gxf5 {[%clk 0:00:33]} 25. Qh6+ {[%clk 0:01:40]}  Ng6 {[%clk 0:00:33]} 26. Rf1 {[%clk 0:01:35]}  Rh8 {[%clk 0:00:25]} 27. Nh7+ {[%clk 0:01:24]}  Rxh7 {[%clk 0:00:18]} 28. Qxh7 {[%clk 0:01:19]}  Rh8 {[%clk 0:00:19]} 29. Rxf5+ {[%clk 0:01:19]}  Kxf5 {[%clk 0:00:18]} 30. Qxf7+ {[%clk 0:01:19]}  Kg5 {[%clk 0:00:18]} 31. Qe6 {[%clk 0:01:15]}  Qc5 {[%clk 0:00:15]} 32. g3 {[%clk 0:01:12]}  Qe5 {[%clk 0:00:14]} 33. Qc4 {[%clk 0:01:12]}  d5 {[%clk 0:00:12]} 34. h4+ {[%clk 0:01:08]}  Kf6 {[%clk 0:00:11]} 35. Qg4 {[%clk 0:01:08]}  Qe4+ {[%clk 0:00:11]} 36. Kh2 {[%clk 0:01:07]}  Qxg4 {[%clk 0:00:11]} 37. Bxg4 {[%clk 0:01:08]}  Ne5 {[%clk 0:00:10]} 38. Be2 {[%clk 0:01:08]}  Nc4 {[%clk 0:00:10]} 39. b3 {[%clk 0:01:07]}  Nd2 {[%clk 0:00:10]} 40. b4 {[%clk 0:01:07]}  Ne4 {[%clk 0:00:10]} 41. c4 {[%clk 0:01:07]}  Nd2 {[%clk 0:00:10]} 42. cxd5 {[%clk 0:01:07]}  Ke5 {[%clk 0:00:10]} 43. Kh3 {[%clk 0:01:04]}  Kxd5 {[%clk 0:00:10]} 44. g4 {[%clk 0:01:05]}  Ke5 {[%clk 0:00:11]} 45. g5 {[%clk 0:01:05]}  Kf4 {[%clk 0:00:11]} 46. Bd3 {[%clk 0:01:04]}  Ne4 {[%clk 0:00:11]} 47. g6 {[%clk 0:01:02]}  Ng5+ {[%clk 0:00:10]} 48. Kg2 {[%clk 0:01:02]}  Ne6 {[%clk 0:00:10]} 49. Bc4 {[%clk 0:00:59]}  Ng7 {[%clk 0:00:10]} 50. Kh3 {[%clk 0:00:59]}  Nf5 {[%clk 0:00:09]} 51. Bf7 {[%clk 0:00:54]}  Rxh4+ {[%clk 0:00:09]} 52. Kg2 {[%clk 0:00:55]}  Ng7 {[%clk 0:00:09]} 53. Kf2 {[%clk 0:00:55]}  Ke5 {[%clk 0:00:09]} 54. Ke3 {[%clk 0:00:55]}  Rxb4 {[%clk 0:00:08]} 55. a5 {[%clk 0:00:56]}  Ra4 {[%clk 0:00:08]} 56. a6 {[%clk 0:00:56]}  Rxa6 {[%clk 0:00:08]} 57. Kd3 {[%clk 0:00:56]}  Rf6 {[%clk 0:00:09]} 58. Kc4 {[%clk 0:00:57]}  Ke4 {[%clk 0:00:08]} 59. Kc5 {[%clk 0:00:57]}  b6+ {[%clk 0:00:08]} 60. Kb5 {[%clk 0:00:57]}  a5 {[%clk 0:00:08]} 61. Kc4 {[%clk 0:00:57]}  Ke5 {[%clk 0:00:08]} 62. Bd5 {[%clk 0:00:58]}  Kd6 {[%clk 0:00:08]} 63. Bf7 {[%clk 0:00:58]}  Rf4+ {[%clk 0:00:08]} 64. Kb5 {[%clk 0:00:58]}  Rb4+ {[%clk 0:00:07]} 65. Ka6 {[%clk 0:00:59]}  Kc5 {[%clk 0:00:07]} 66. Kb7 {[%clk 0:00:59]}  a4 {[%clk 0:00:07]} 67. Kc7 {[%clk 0:01:00]}  a3 {[%clk 0:00:08]} 68. Kd7 {[%clk 0:01:00]}  Rc4 {[%clk 0:00:08]} 69. Kxe7 {[%clk 0:00:59]}  a2 {[%clk 0:00:07]} 70. Kf6 {[%clk 0:00:59]}  a1=Q+ {[%clk 0:00:07]} 71. Ke7 {[%clk 0:00:59]}  Qe5+ {[%clk 0:00:07]} 72. Kf8 {[%clk 0:01:00]}  Rd4 {[%clk 0:00:07]} 73. Kg8 {[%clk 0:00:59]}  Rd8+ {[%clk 0:00:06]} 74. Kh7 {[%clk 0:00:59]}  Qf6 {[%clk 0:00:06]} 75. Bg8 {[%clk 0:00:59]}  Nf5 {[%clk 0:00:05]} 76. Bf7 {[%clk 0:00:58]}  Qg7# {[%clk 0:00:05]} 0-1


[Site "https://www.chess.com"]

[Event "Titled Tuesday Blitz June 27 Early 2023"]
[White "rikchessmx"]
[Black "Estrada Nieto, Julian"]
[BlackFideId "5101018"]
[WhiteElo "2294"]
[BlackElo "2516"]
[Result "1-0"]
[Round "2"]
[TimeControl "180+2"]
[Date "2023.06.27"]
[WhiteClock "0:00:47"]
[BlackClock "0:00:05"]
[Board "187"]

1. e4 {[%clk 0:03:00]}  e5 {[%clk 0:02:59]} 2. Nf3 {[%clk 0:03:00]}  Nc6 {[%clk 0:02:59]} 3. Bb5 {[%clk 0:03:00]}  a6 {[%clk 0:02:59]} 4. Ba4 {[%clk 0:03:00]}  Nf6 {[%clk 0:03:00]} 5. O-O {[%clk 0:03:00]}  Be7 {[%clk 0:03:00]} 6. Re1 {[%clk 0:03:00]}  b5 {[%clk 0:03:00]} 7. Bb3 {[%clk 0:02:59]}  d6 {[%clk 0:03:01]} 8. d3 {[%clk 0:03:00]}  Na5 {[%clk 0:02:59]} 9. Nc3 {[%clk 0:02:57]}  O-O {[%clk 0:02:57]} 10. h3 {[%clk 0:02:56]}  Bb7 {[%clk 0:02:55]} 11. Bg5 {[%clk 0:02:54]}  Nxb3 {[%clk 0:02:55]} 12. axb3 {[%clk 0:02:53]}  Nd7 {[%clk 0:02:48]} 13. Bxe7 {[%clk 0:02:52]}  Qxe7 {[%clk 0:02:48]} 14. Ne2 {[%clk 0:02:53]}  Rfe8 {[%clk 0:02:40]} 15. Ng3 {[%clk 0:02:53]}  g6 {[%clk 0:02:39]} 16. Qd2 {[%clk 0:02:52]}  Qf6 {[%clk 0:02:38]} 17. Qa5 {[%clk 0:02:50]}  Rac8 {[%clk 0:02:31]} 18. Rf1 {[%clk 0:02:47]}  Nc5 {[%clk 0:02:30]} 19. Qd2 {[%clk 0:02:43]}  Ne6 {[%clk 0:02:29]} 20. Nh2 {[%clk 0:02:41]}  h5 {[%clk 0:02:22]} 21. Ne2 {[%clk 0:02:40]}  Qg5 {[%clk 0:02:14]} 22. f4 {[%clk 0:02:35]}  exf4 {[%clk 0:02:14]} 23. Nxf4 {[%clk 0:02:35]}  Nxf4 {[%clk 0:02:14]} 24. Rxf4 {[%clk 0:02:29]}  Re7 {[%clk 0:02:02]} 25. Qf2 {[%clk 0:02:28]}  Rf8 {[%clk 0:01:50]} 26. Rf1 {[%clk 0:02:25]}  Bc8 {[%clk 0:01:45]} 27. Rf3 {[%clk 0:02:19]}  b4 {[%clk 0:01:35]} 28. Kh1 {[%clk 0:02:01]}  Qe5 {[%clk 0:01:24]} 29. Qh4 {[%clk 0:01:49]}  Rfe8 {[%clk 0:01:17]} 30. Rg3 {[%clk 0:01:46]}  Qxb2 {[%clk 0:00:41]} 31. Qxh5 {[%clk 0:01:39]}  Qe5 {[%clk 0:00:41]} 32. Qh4 {[%clk 0:01:33]}  Kg7 {[%clk 0:00:40]} 33. Rg5 {[%clk 0:01:27]}  Qc3 {[%clk 0:00:31]} 34. Qf4 {[%clk 0:01:25]}  Be6 {[%clk 0:00:28]} 35. Ng4 {[%clk 0:01:24]}  Bxg4 {[%clk 0:00:27]} 36. Rxg4 {[%clk 0:01:18]}  Qe5 {[%clk 0:00:25]} 37. Qf2 {[%clk 0:01:15]}  c5 {[%clk 0:00:25]} 38. Rf4 {[%clk 0:01:15]}  a5 {[%clk 0:00:22]} 39. Qh4 {[%clk 0:01:14]}  g5 {[%clk 0:00:20]} 40. Qg4 {[%clk 0:01:10]}  f6 {[%clk 0:00:17]} 41. Rf5 {[%clk 0:01:10]}  Qc3 {[%clk 0:00:16]} 42. h4 {[%clk 0:01:10]}  Rh8 {[%clk 0:00:15]} 43. Rxg5+ {[%clk 0:01:06]}  fxg5 {[%clk 0:00:12]} 44. Qxg5+ {[%clk 0:01:06]}  Kh7 {[%clk 0:00:08]} 45. Qxe7+ {[%clk 0:01:06]}  Kh6 {[%clk 0:00:07]} 46. Qg5+ {[%clk 0:01:06]}  Kh7 {[%clk 0:00:05]} 47. Rf7+ {[%clk 0:00:47]} 1-0


[Site "https://www.chess.com"]